bitfinex-derivatives/quotes_SOLF0:USTF0_20240830
["timestamp","ask_amount","ask_price","bid_price","bid_amount"]
[1725029797893,53.5589,136.89,136.79,2.8168]
[1725029798388,3.70329486,136.85,136.83,0.05243587]
[1725029798889,0.04969486,136.85,136.83,0.05243587]
[1725029799092,3.6537,136.84,136.83,0.05243587]
[1725029799294,42.16969486,136.85,136.66,3.66878608]
[1725029799485,42.16969486,136.85,136.74,2.8066]
[1725029799486,42.12,136.85,136.74,2.8066]
[1725029799686,42.12,136.85,136.74,6.5254482]
[1725029800084,42.12,136.83,136.74,3.7188482]
[1725029800282,0.05036888,136.8,136.77,0.05521393]
[1725029800482,0.05187318,136.8,136.77,0.05109676]
[1725029800800,42.17187318,136.8,136.77,0.05109676]
[1725029801096,42.12,136.78,136.67,2.8066]
[1725029801292,42.12,136.75,136.67,2.8066]
[1725029801597,42.12,136.73,136.58,14.64]
[1725029801890,42.12,136.73,136.61,2.6975]
[1725029802090,0.05579235,136.68,136.66,0.05413425]
[1725029802287,0.0500269,136.68,136.66,0.05413425]
[1725029803084,3.6582,136.67,136.66,0.05413425]
[1725029803293,3.6582,136.67,136.66,0.01159211]
[1725029803897,0.0500269,136.68,136.66,0.01159211]
[1725029803898,3.7080269,136.68,136.66,0.01159211]
[1725029804292,3.7080269,136.68,136.6,3.72678075]
[1725029804293,45.84488429,136.68,136.6,3.72678075]
[1725029804592,42.1700269,136.68,136.57,1.4043]
[1725029804787,42.12,136.68,136.59,3.6603]
[1725029804993,42.12,136.68,136.57,5.11243222]
[1725029804994,42.12,136.66,136.57,1.4043]
[1725029805399,0.05450631,136.63,136.6,0.05537054]
[1725029805595,0.05450631,136.63,136.6,3.65681071]
[1725029805796,3.71400631,136.63,136.6,0.05537054]
[1725029806201,0.05450631,136.63,136.6,3.78121278]
[1725029806409,0.05450631,136.63,136.6,0.05537054]
[1725029808696,43.5339,136.72,136.6,42.17537054]
[1725029808893,42.12,136.71,136.6,42.12]
[1725029809093,3.6582,136.68,136.58,42.12]
[1725029809296,45.87073185,136.71,136.58,42.12]
[1725029809297,42.12,136.71,136.58,42.12]
[1725029809494,42.12,136.71,136.6,42.12]
[1725029809693,0.05536155,136.67,136.64,0.0553702]
[1725029811195,0.05536155,136.67,136.64,3.74389479]
[1725029811395,0.05536155,136.67,136.64,0.0553702]
[1725029812703,0.05536155,136.67,136.64,45.9105524]
[1725029812894,0.05536155,136.67,136.64,0.0553702]
[1725029814000,0.05536155,136.67,136.66,3.6585]
[1725029814600,0.05536155,136.67,136.65,1.3764]
[1725029814997,0.05536155,136.67,136.64,4.98445939]
[1725029814998,0.05536155,136.67,136.64,1.4058702]
[1725029815602,3.71366155,136.67,136.64,0.0553702]
[1725029815805,0.05536155,136.67,136.64,0.0553702]
[1725029816208,3.71376155,136.67,136.64,0.0553702]
[1725029816403,0.05536155,136.67,136.64,0.0553702]
[1725029816910,3.71356155,136.67,136.64,0.0553702]
[1725029817302,0.05536155,136.67,136.64,3.7142702]
[1725029818005,0.05536155,136.67,136.64,0.0553702]
[1725029819404,0.05536155,136.67,136.64,0.0553702]
[1725029819807,42.12,136.74,136.63,4.0667]
[1725029820106,42.12,136.72,136.63,4.0667]
[1725029820608,42.12,136.72,136.62,3.57242136]
[1725029820903,42.12,136.67,136.66,0.05503302]
[1725029821107,42.12,136.67,136.65,0.05209745]
[1725029821308,42.17200253,136.67,136.65,0.05390986]
[1725029821699,0.05200253,136.67,136.65,0.05390986]
[1725029822607,0.05200253,136.67,136.66,3.58095041]
[1725029823114,42.12,136.79,136.66,42.12]
[1725029823301,3.6553,136.78,136.73,3.6564]
[1725029823615,4.1104,136.8,136.73,3.6564]
[1725029823815,42.12,136.79,136.7,3.6574]
[1725029824110,42.12,136.77,136.7,3.72291514]
[1725029824309,0.05586656,136.75,136.72,0.05537657]
[1725029824508,42.12,136.75,136.67,3.69533421]
[1725029824700,42.16990104,136.75,136.72,0.04744626]
[1725029824900,42.12,136.73,136.63,2.7098]
[1725029825516,42.12,136.77,136.64,42.12]
[1725029825819,4.1104,136.8,136.63,2.7098]
[1725029825820,0.04636904,136.72,136.69,0.05566824]
[1725029826010,35.11,136.81,136.7,35.11]
[1725029826311,35.11,136.76,136.74,0.05423512]
[1725029826510,35.16461741,136.76,136.69,3.65511189]
[1725029826711,0.04818602,136.74,136.71,0.05518315]
[1725029826909,0.04631926,136.74,136.71,0.05282492]
[1725029827111,0.04631926,136.74,136.73,3.6566]
[1725029827509,0.04631926,136.74,136.71,0.05282492]
[1725029829018,0.04631926,136.74,136.73,3.6566]
[1725029830307,2.6484,136.82,136.71,37.9293]
[1725029830308,1.3452,136.82,136.71,37.9293]
[1725029830718,35.11,136.8,136.71,2.8193]
[1725029830911,35.11,136.8,136.72,3.6568]
[1725029831108,3.6563,136.75,136.71,6.44938189]
[1725029831412,0.05623544,136.74,136.72,0.04774539]
[1725029831916,35.11,136.73,136.65,5.03876309]
[1725029832228,3.6576,136.7,136.65,1.3276]
[1725029832515,1.413,136.74,136.65,1.3276]
[1725029832720,1.413,136.74,136.65,5.02121795]
[1725029833014,0.051838,136.71,136.68,0.05150623]
[1725029834112,0.051838,136.71,136.7,3.6574]
[1725029834315,2.7187,136.78,136.69,2.7413]
[1725029834521,3.6563,136.75,136.72,3.6569]
[1725029834711,2.7187,136.78,136.73,3.70457038]
[1725029834910,2.7187,136.78,136.69,2.7413]
[1725029835110,2.7187,136.78,136.73,3.6565]
[1725029835111,3.6557,136.77,136.73,3.6565]
[1725029835311,0.05193326,136.76,136.74,0.05154146]
[1725029835820,1.3514,136.83,136.75,35.11]
[1725029836016,3.6542,136.82,136.75,38.70378427]
[1725029836511,1.3514,136.83,136.76,1.3918]
[1725029837023,0.05397392,136.81,136.78,0.05470411]
[1725029837721,3.655,136.79,136.78,0.05470411]
[1725029837906,0.05397392,136.81,136.78,0.05470411]
[1725029838609,35.16397392,136.81,136.78,0.05470411]
[1725029838919,3.655,136.79,136.78,0.05470411]
[1725029839217,1.4269,136.8,136.7,35.11]
[1725029839421,35.11,136.79,136.7,7.28442821]
[1725029839626,36.527,136.79,136.7,7.28442821]
[1725029839918,36.527,136.79,136.7,7.28422821]
[1725029840419,0.05215527,136.76,136.73,0.05598585]
[1725029841816,0.05215527,136.76,136.74,3.6561]
[1725029842318,0.05215527,136.76,136.73,35.16598585]
[1725029842511,0.05215527,136.76,136.75,3.6561]
[1725029842716,1.359,136.84,136.75,35.11]
[1725029842919,36.469,136.84,136.73,35.11]
[1725029843219,36.469,136.84,136.69,2.7501]
[1725029843220,35.11,136.79,136.69,2.7501]
[1725029843416,35.11,136.79,136.69,6.46829245]
[1725029843620,0.04993421,136.75,136.73,0.05603542]
[1725029844026,0.04993421,136.75,136.74,3.6563]
[1725029844325,0.04993421,136.75,136.73,0.05603542]
[1725029845215,38.7663,136.74,136.73,0.05603542]
[1725029845418,35.11,136.74,136.63,2.6096981]
[1725029845727,36.4311,136.74,136.64,1.32383966]
[1725029845922,36.4311,136.74,136.63,1.2858]
[1725029846420,0.05142503,136.7,136.67,0.05377858]
[1725029847629,13.3,136.79,136.69,35.11]
[1725029847820,35.11,136.81,136.71,35.11]
[1725029848125,3.6555,136.78,136.74,3.6563]
[1725029848318,3.6555,136.78,136.74,3.70382561]
[1725029848630,0.0525305,136.77,136.71,35.11]
[1725029848819,0.0525305,136.77,136.75,0.05481336]
[1725029851118,3.7082305,136.77,136.75,0.05481336]
[1725029851626,3.6558,136.76,136.75,0.05481336]
[1725029851827,0.0525305,136.77,136.75,0.05481336]
[1725029853330,0.0525305,136.77,136.76,3.6558]
[1725029854534,3.6539,136.83,136.75,1.34261336]
[1725029854725,42.12,136.88,136.75,1.34261336]
[1725029854726,2.7592,136.88,136.77,42.12]
[1725029855134,3.6536,136.85,136.78,1.3911]
[1725029855328,0.0546424,136.83,136.81,3.6545]
[1725029855537,0.0546424,136.83,136.8,0.05149193]
[1725029855830,3.6531,136.87,136.8,0.05149193]
[1725029856032,46.1758,136.92,136.79,42.12]
[1725029856237,42.12,136.85,136.75,1.2878]
[1725029856731,4.0558,136.84,136.75,1.2878]
[1725029856922,0.04696187,136.81,136.78,0.05022364]
[1725029857443,0.04696187,136.81,136.78,7.27977661]
[1725029857728,0.04696187,136.81,136.78,0.05022364]
[1725029859830,0.04696187,136.81,136.79,3.6548]
[1725029860038,0.04696187,136.81,136.78,0.05022364]
[1725029860428,0.04696187,136.81,136.78,1.43882364]
[1725029860830,0.04696187,136.81,136.8,3.6547]
[1725029861130,0.04696187,136.81,136.78,1.43882364]
[1725029861331,0.04696187,136.81,136.78,0.05022364]
[1725029861832,4.15626187,136.81,136.78,0.05022364]
[1725029863036,3.655,136.79,136.78,0.05022364]
[1725029863738,3.655,136.79,136.67,4.0324]
[1725029863739,42.12,136.8,136.68,55.18]
[1725029864033,42.12,136.8,136.68,42.12]
[1725029864241,42.12,136.78,136.69,3.6575]
[1725029864429,42.12,136.75,136.67,4.0324]
[1725029864628,0.05625683,136.72,136.7,0.04636909]
[1725029865643,1.41315683,136.72,136.7,0.04636909]
[1725029865845,3.6571,136.71,136.7,0.04636909]
[1725029866141,1.3569,136.72,136.62,1.3806]
[1725029866439,42.12,136.71,136.61,2.7189]
[1725029866642,43.5108,136.71,136.62,3.59702292]
[1725029866845,3.6581,136.68,136.62,3.6593]
[1725029867031,3.6581,136.68,136.61,2.7189]
[1725029867236,0.04760119,136.66,136.63,3.73266636]
[1725029867437,0.04760119,136.66,136.63,7.39176636]
[1725029867737,0.04760119,136.66,136.63,3.70707706]
[1725029868045,0.04760119,136.66,136.63,3.69022951]
[1725029868244,0.04760119,136.66,136.63,0.04797706]
[1725029868435,0.04760119,136.66,136.63,3.79778497]
[1725029868633,0.04760119,136.66,136.63,3.70717706]
[1725029868948,0.04760119,136.66,136.63,3.75242144]
[1725029869642,0.04760119,136.66,136.63,7.41152144]
[1725029870029,0.04760119,136.66,136.63,3.75242144]
[1725029870231,0.04760119,136.66,136.63,7.41162144]
[1725029870833,0.04760119,136.66,136.63,3.75242144]
[1725029871237,3.70630119,136.66,136.63,0.04797706]
[1725029872242,0.04760119,136.66,136.63,0.04797706]
[1725029873149,0.04760119,136.66,136.63,3.70697706]
[1725029873533,0.04760119,136.66,136.63,0.04797706]
[1725029874339,3.70630119,136.66,136.63,0.04797706]
[1725029875043,0.04760119,136.66,136.63,0.04797706]
[1725029875537,3.6587,136.65,136.63,0.04797706]
[1725029875744,0.04760119,136.66,136.63,0.04797706]
[1725029876738,0.04760119,136.66,136.65,35.1]
[1725029877546,0.04760119,136.66,136.63,0.04797706]
[1725029879842,3.659,136.65,136.63,0.04797706]
[1725029880149,0.04760119,136.66,136.63,0.04797706]
[1725029881045,3.70620119,136.66,136.63,0.04797706]
[1725029881247,0.04760119,136.66,136.63,0.04797706]
[1725029881655,3.659,136.64,136.63,0.04797706]
[1725029884951,0.04760119,136.66,136.63,0.04797706]
[1725029885850,3.70610119,136.66,136.63,0.04797706]
[1725029886248,0.04760119,136.66,136.63,0.04797706]
[1725029887557,0.04760119,136.66,136.64,3.6588]
[1725029887852,0.04760119,136.66,136.63,0.04797706]
[1725029888059,3.659,136.65,136.63,0.04797706]
[1725029888354,0.04760119,136.66,136.63,0.04797706]
[1725029889651,3.6589,136.65,136.63,0.04797706]
[1725029890656,3.70610119,136.66,136.63,0.04797706]
[1725029891047,0.04760119,136.66,136.63,0.04797706]
[1725029891854,0.04760119,136.66,136.63,3.70697706]
[1725029892059,0.04760119,136.66,136.63,0.04797706]
[1725029893061,3.70630119,136.66,136.63,0.04797706]
[1725029893452,0.04760119,136.66,136.63,3.70707706]
[1725029893652,0.04760119,136.66,136.63,0.04797706]
[1725029893954,0.04760119,136.66,136.64,3.6589]
[1725029894358,0.04760119,136.66,136.63,0.04797706]
[1725029895166,0.04760119,136.66,136.63,3.70717706]
[1725029895459,0.04760119,136.66,136.63,0.04797706]
[1725029895852,0.04760119,136.66,136.57,4.117]
[1725029895853,35.1,136.65,136.57,1.3053]
[1725029896050,35.1,136.65,136.57,5.02200081]
[1725029896459,35.1,136.65,136.57,3.71670081]
[1725029896657,35.1,136.65,136.54,36.4152]
[1725029896958,6.44939871,136.66,136.54,36.4152]
[1725029896959,0.05133447,136.61,136.58,3.71310527]
[1725029897154,0.05133447,136.61,136.58,7.37169552]
[1725029897356,0.05133447,136.61,136.59,3.6602]
[1725029897559,0.05133447,136.61,136.58,3.71109552]
[1725029897955,0.05133447,136.61,136.58,0.05250527]
[1725029898152,0.05133447,136.61,136.58,3.68035414]
[1725029898453,3.6603,136.6,136.58,0.05250527]
[1725029898658,0.05133447,136.61,136.58,0.05250527]
[1725029899055,3.6602,136.6,136.58,0.05250527]
[1725029899266,0.05133447,136.61,136.58,0.05250527]
[1725029899460,3.6604,136.59,136.58,0.05250527]
[1725029899961,0.05133447,136.61,136.58,0.05250527]
[1725029900460,3.71113447,136.61,136.58,0.05250527]
[1725029900854,0.05133447,136.61,136.58,0.05250527]
[1725029901058,0.05133447,136.61,136.58,35.15250527]
[1725029901263,0.05133447,136.61,136.6,38.7601]
[1725029901668,4.1319,136.7,136.6,35.1]
[1725029901861,35.1,136.69,136.58,35.1]
[1725029902057,3.6594,136.63,136.58,35.1]
[1725029902360,35.1,136.69,136.59,3.6601]
[1725029902566,0.05609323,136.65,136.63,0.04911611]
[1725029902763,0.05373949,136.65,136.63,0.04911611]
[1725029904055,0.05373949,136.65,136.63,3.7815517]
[1725029904255,0.05373949,136.65,136.63,0.04911611]
[1725029905361,0.05373949,136.65,136.59,3.60911885]
[1725029905563,3.73389929,136.66,136.56,35.1]
[1725029905764,35.1,136.67,136.56,35.1]
[1725029905765,35.1,136.67,136.57,3.73243559]
[1725029906162,3.6593,136.64,136.57,3.73243559]
[1725029906356,0.05375978,136.62,136.59,0.05249646]
[1725029906766,0.05375978,136.62,136.59,3.73443439]
[1725029906965,0.05375978,136.62,136.59,0.05249646]
[1725029907964,0.05375978,136.62,136.6,35.1]
[1725029908173,0.05375978,136.62,136.59,0.05249646]
[1725029908563,0.05375978,136.62,136.59,3.71279646]
[1725029908759,0.05375978,136.62,136.59,0.05249646]
[1725029910471,0.05375978,136.62,136.59,3.71269646]
[1725029910770,0.05375978,136.62,136.59,35.15249646]
[1725029910969,0.05375978,136.62,136.59,0.05249646]
[1725029911173,0.05375978,136.62,136.59,3.71279646]
[1725029911370,0.05375978,136.62,136.59,0.05249646]
[1725029911765,0.05375978,136.62,136.59,3.71279646]
[1725029913074,0.05375978,136.62,136.59,35.15249646]
[1725029914174,0.05375978,136.62,136.6,28.09]
[1725029914369,0.05375978,136.62,136.61,3.6598]
[1725029915073,0.05375978,136.62,136.6,31.7499]
[1725029915283,0.05375978,136.62,136.59,0.05249646]
[1725029915971,3.6601,136.6,136.59,0.05249646]
[1725029916270,28.09,136.6,136.51,2.7731]
[1725029916477,31.75637388,136.6,136.51,1.4125]
[1725029916779,28.09,136.62,136.52,28.09]
[1725029917072,3.6596,136.62,136.54,28.09]
[1725029917266,41.85,136.66,136.58,3.6604]
[1725029917267,0.04735153,136.59,136.58,3.6604]
[1725029917583,0.05495852,136.6,136.57,0.04725693]
[1725029917774,0.05251164,136.6,136.59,3.6604]
[1725029918164,0.05251164,136.6,136.57,0.05417864]
[1725029919865,35.18251164,136.6,136.5,7.53664544]
[1725029920070,35.13,136.58,136.5,7.53664544]
[1725029920467,3.6622,136.53,136.5,7.53664544]
[1725029920667,35.13,136.56,136.5,7.53664544]
[1725029920875,0.04774406,136.53,136.5,7.58633625]
[1725029921372,0.04774406,136.53,136.5,5.44563625]
[1725029921373,3.6625,136.51,136.5,5.44563625]
[1725029921576,3.64517296,136.53,136.5,5.44563625]
[1725029922075,0.04774406,136.53,136.5,5.44563625]
[1725029923069,0.04774406,136.53,136.5,9.10813625]
[1725029923271,0.04774406,136.53,136.5,40.57563625]
[1725029923978,0.04774406,136.53,136.52,35.13]
[1725029924376,1.3388,136.64,136.52,35.13]
[1725029924583,1.3388,136.64,136.57,35.13]
[1725029924777,1.3388,136.64,136.57,3.63226893]
[1725029924983,1.3388,136.64,136.55,35.13]
[1725029925183,36.4688,136.64,136.53,35.13]
[1725029925380,0.0478549,136.6,136.57,0.04667417]
[1725029925893,0.0478549,136.6,136.58,3.6604]
[1725029926181,0.0478549,136.6,136.57,0.04667417]
[1725029926182,0.0478549,136.6,136.57,35.17667417]
[1725029926381,0.0478549,136.6,136.59,3.6604]
[1725029926580,0.0478549,136.6,136.57,0.04667417]
[1725029927885,0.0478549,136.6,136.59,3.6604]
[1725029928084,0.0478549,136.6,136.57,0.04667417]
[1725029928774,0.0478549,136.6,136.59,3.6604]
[1725029929180,0.0478549,136.6,136.58,3.6605]
[1725029929679,0.0478549,136.6,136.57,0.04667417]
[1725029931691,3.6605,136.59,136.57,0.04667417]
[1725029932193,3.6618,136.54,136.5,5.39594544]
[1725029932393,1.4042,136.58,136.5,5.39594544]
[1725029932586,36.5342,136.58,136.5,8.98363391]
[1725029932782,40.17934712,136.58,136.5,5.39594544]
[1725029933384,0.0486924,136.55,136.53,0.05617941]
[1725029933779,3.6617,136.54,136.53,0.05617941]
[1725029934986,0.0486924,136.55,136.53,0.05617941]
[1725029937482,3.6624,136.52,136.5,5.39594544]
[1725029938086,35.13,136.54,136.39,18.12974698]
[1725029938289,35.13,136.49,136.37,35.13]
[1725029938585,0.05601563,136.44,136.42,0.04658589]
[1725029938792,0.04658345,136.44,136.42,0.04658589]
[1725029939688,3.71098345,136.44,136.42,0.04658589]
[1725029940391,0.04658345,136.44,136.42,0.04658589]
[1725029941487,3.71098345,136.44,136.42,0.04658589]
[1725029941694,0.04658345,136.44,136.42,0.04658589]
[1725029942091,35.17658345,136.44,136.42,0.04658589]
[1725029942297,38.75089093,136.44,136.42,0.04658589]
[1725029942793,3.6646,136.43,136.42,0.04658589]
[1725029943684,35.13,136.44,136.32,35.13]
[1725029943885,35.13,136.41,136.35,3.6666]
[1725029944192,3.6662,136.38,136.3,35.13]
[1725029944394,3.6662,136.38,136.26,13.36]
[1725029944395,35.13,136.37,136.26,0.02]
[1725029944697,0.04821908,136.29,136.26,0.04820909]
[1725029944884,0.04885586,136.29,136.28,3.6685]
[1725029945081,0.04885586,136.29,136.26,0.05122509]
[1725029945286,3.6687,136.28,136.26,0.05122509]
[1725029945493,35.17885586,136.29,136.26,0.05122509]
[1725029945687,0.04885586,136.29,136.26,0.05122509]
[1725029945887,3.669,136.27,136.26,0.05122509]
[1725029946091,0.04885586,136.29,136.26,0.05122509]
[1725029946295,35.13,136.27,136.15,2.14295043]
[1725029946491,35.13,136.27,136.18,3.6713]
[1725029946698,35.13,136.27,136.16,1.32829766]
[1725029946898,30.7059,136.32,136.19,35.13]
[1725029947093,65.7827,136.32,136.19,35.13]
[1725029947399,0.047967,136.27,136.24,0.04987021]
[1725029948199,0.047967,136.27,136.26,3.6692]
[1725029948600,3.6663,136.37,136.27,35.13]
[1725029949100,35.13,136.34,136.22,35.13]
[1725029949285,35.13,136.32,136.2,1.34]
[1725029949490,35.13,136.32,136.2,36.47]
[1725029949691,0.0474064,136.27,136.26,3.6692]
[1725029949892,38.7977,136.32,136.26,3.72973369]
[1725029950089,0.04659494,136.28,136.25,0.05299825]
[1725029950492,35.13,136.27,136.05,107.3498]
[1725029950690,0.04659494,136.28,136.05,107.3498]
[1725029950691,35.13,136.24,136.16,1.32846285]
[1725029950892,35.13,136.24,136.15,2.14295043]
[1725029951297,35.13,136.22,136.15,5.81485043]
[1725029951496,0.04963292,136.2,136.15,2.14295043]
[1725029951793,0.04963292,136.2,136.17,0.04941768]
[1725029951794,3.6713,136.19,136.17,0.04941768]
[1725029951996,0.04963292,136.2,136.17,0.04941768]
[1725029952592,35.13,136.2,136.05,100.0]
[1725029952790,35.13,136.15,136.06,1.32925092]
[1725029952993,35.13,136.15,136.05,100.0]
[1725029952994,35.13,136.15,136.07,3.6742]
[1725029953192,35.13,136.15,136.05,100.0]
[1725029953798,0.05280191,136.11,136.09,0.04828055]
[1725029954398,0.05280191,136.11,136.05,100.0]
[1725029955197,35.13,136.08,136.05,100.0]
[1725029955404,35.18280191,136.11,136.05,100.0]
[1725029955405,35.13,136.06,136.05,97.27425337]
[1725029955900,35.13,136.11,136.05,97.27425337]
[1725029956201,3.6741,136.08,136.05,97.27425337]
[1725029956513,0.05361454,136.08,136.05,97.27425337]
[1725029958598,35.13,136.16,136.06,35.13]
[1725029958794,35.13,136.18,136.06,35.13]
[1725029959004,38.790222,136.18,136.06,36.5531]
[1725029959204,35.13,136.15,136.06,1.4231]
[1725029959611,35.13,136.18,136.08,35.13]
[1725029959808,29.36,136.21,136.08,35.13]
[1725029959809,0.05524231,136.14,136.12,0.05379095]
[1725029960026,35.13,136.2,136.12,3.69996048]
[1725029960308,35.13,136.2,136.06,1.4231]
[1725029960309,16.69578916,136.29,136.15,0.05425757]
[1725029960512,35.13,136.24,136.13,1.3951]
[1725029960716,35.13,136.21,136.13,1.3951]
[1725029961007,35.13,136.24,136.13,1.3951]
[1725029961214,35.13,136.19,136.13,1.3951]
[1725029961412,3.6714,136.18,136.13,5.0676]
[1725029961610,0.05567704,136.17,136.15,0.04792967]
[1725029962909,35.13,136.24,136.15,0.04792967]
[1725029963119,3.6712,136.19,136.13,1.3951]
[1725029963303,35.13,136.24,136.13,1.3951]
[1725029963505,3.6707,136.21,136.13,1.3951]
[1725029963715,35.13,136.24,136.13,1.3951]
[1725029963915,3.64244041,136.26,136.13,1.3951]
[1725029963916,35.13,136.21,136.13,1.3951]
[1725029964122,0.05130568,136.2,136.13,1.3951]
[1725029964422,0.05130568,136.2,136.16,0.04873333]
[1725029964423,35.13,136.19,136.16,0.04873333]
[1725029965121,3.6716,136.18,136.16,0.04873333]
[1725029965512,0.05130568,136.2,136.16,0.04873333]
[1725029966713,3.6713,136.19,136.16,0.04873333]
[1725029966914,0.05130568,136.2,136.16,0.04873333]
[1725029967811,0.05130568,136.2,136.17,3.6716]
[1725029968419,0.05130568,136.2,136.18,3.6713]
[1725029968608,0.05130568,136.2,136.16,0.04873333]
[1725029968810,0.05130568,136.2,136.19,3.6711]
[1725029969207,0.05130568,136.2,136.16,0.04873333]
[1725029969612,35.13,136.27,136.16,35.17873333]
[1725029969911,35.13,136.27,136.16,35.13]
[1725029970517,35.13,136.29,136.18,35.13]
[1725029970729,7.3331,136.36,136.18,35.13]
[1725029970730,1.5382,136.37,136.24,35.13]
[1725029970914,35.13,136.36,136.25,1.3813]
[1725029971117,35.13,136.4,136.25,2.8088]
[1725029971118,35.13,136.34,136.25,2.8088]
[1725029971415,35.13,136.36,136.25,2.8088]
[1725029971615,35.13,136.36,136.26,35.13]
[1725029972009,0.04663165,136.32,136.3,0.05342416]
[1725029972527,0.04663165,136.32,136.31,3.6679]
[1725029973025,38.796,136.38,136.33,3.6672]
[1725029973327,35.13,136.4,136.29,35.13]
[1725029973525,37.1863,136.47,136.29,35.13]
[1725029973526,35.13,136.38,136.29,35.13]
[1725029974025,35.13,136.4,136.29,35.13]
[1725029974229,0.05033039,136.36,136.33,0.05179432]
[1725029974421,0.05033039,136.36,136.33,3.7755731]
[1725029974822,0.05033039,136.36,136.33,0.05179432]
[1725029975021,35.13,136.35,136.15,7.3444]
[1725029975221,3.6686,136.29,136.23,3.6699]
[1725029975421,3.6686,136.29,136.23,3.66586009]
[1725029975623,35.13,136.31,136.23,3.66586009]
[1725029975831,35.13,136.31,136.26,3.669]
[1725029976225,0.05619262,136.3,136.27,0.04640602]
[1725029977432,3.72439262,136.3,136.27,0.04640602]
[1725029978438,0.05619262,136.3,136.27,0.04640602]
[1725029979233,0.05619262,136.3,136.28,3.6686]
[1725029979632,0.05619262,136.3,136.27,3.71530602]
[1725029980130,0.05619262,136.3,136.28,3.6687]
[1725029980431,0.05619262,136.3,136.27,0.04640602]
[1725029981426,35.13,136.29,136.27,0.04640602]
[1725029981630,35.13,136.28,136.13,1.3482]
[1725029981834,35.13,136.23,136.13,3.9781]
[1725029982226,35.13,136.18,136.05,97.27425337]
[1725029982424,35.13,136.16,136.06,3.9781]
[1725029982623,3.6733,136.11,136.06,3.9781]
[1725029982825,0.04846828,136.12,136.06,3.9781]
[1725029983024,0.04846828,136.12,136.07,0.0521159]
[1725029983236,3.72166828,136.12,136.07,0.0521159]
[1725029983628,0.04846828,136.12,136.07,0.0521159]
[1725029983828,0.04846828,136.12,136.07,35.1821159]
[1725029984029,42.32,136.2,136.07,42.32]
[1725029984831,3.6716,136.18,136.13,3.6727]
[1725029985029,0.04905181,136.17,136.14,0.05603872]
[1725029985231,0.04737113,136.17,136.14,0.05399498]
[1725029986032,3.6722,136.15,136.14,0.05399498]
[1725029986234,45.9922,136.15,136.14,0.05399498]
[1725029986432,3.6743,136.08,136.06,2.6299]
[1725029986634,42.32,136.11,136.06,2.6299]
[1725029986846,42.32,136.11,136.05,97.27425337]
[1725029987134,3.6746,136.06,136.05,97.27425337]
[1725029987431,0.05629144,136.07,136.05,97.27425337]
[1725029987627,0.05629144,136.07,136.05,97.32334792]
[1725029987628,3.6746,136.06,136.05,97.32334792]
[1725029988132,14.9346,136.06,136.05,86.04713394]
[1725029988334,3.6746,136.06,136.05,86.04713394]
[1725029989031,45.9946,136.06,136.05,83.03713395]
[1725029989233,3.6774,135.96,135.89,42.32]
[1725029989442,42.32,135.9,135.79,100.0]
[1725029989633,42.32,135.87,135.79,100.0]
[1725029989826,42.32,135.89,135.79,100.0]
[1725029990024,42.32,135.86,135.79,100.0]
[1725029990234,3.6816,135.81,135.79,100.0]
[1725029990536,0.05168724,135.81,135.79,100.05061878]
[1725029991229,42.32,135.8,135.66,3.6853]
[1725029991538,42.32,135.8,135.57,7.690282]
[1725029991539,42.32,135.78,135.57,7.690282]
[1725029991748,42.32,135.66,135.58,1.33372418]
[1725029992035,42.32,135.63,135.49,42.32]
[1725029992237,29.4,135.73,135.5,3.68237004]
[1725029992448,42.32,135.68,135.56,42.32]
[1725029992740,43.32,135.8,135.62,0.04874752]
[1725029992741,0.05152576,135.64,135.62,0.04874752]
[1725029992946,0.05403466,135.64,135.62,0.04958447]
[1725029993435,0.05403466,135.64,135.63,3.6863]
[1725029993640,0.05403466,135.64,135.62,0.04958447]
[1725029993936,0.05403466,135.64,135.63,3.6863]
[1725029994138,0.05403466,135.64,135.62,0.04958447]
[1725029994634,42.32,135.74,135.64,3.6859]
[1725029994838,42.32,135.74,135.62,11.68]
[1725029995232,42.32,135.74,135.62,54.0]